[Event "Norway Eliteserien 2023-24"]
[Site "Oslo"]
[Date "2024.03.09"]
[Round "8.25"]
[White "Skaar, Ben Samuel Groth"]
[Black "Myagmarsuren, Evsuld"]
[Result "1-0"]
[ECO "B95"]
[WhiteElo "1980"]
[BlackElo "2142"]
[Annotator "RC"]
[PlyCount "91"]
[EventDate "2023.10.27"]
[EventType "team-tourn"]
[EventCountry "NOR"]
[SourceTitle "playchess.com"]
[Source "ChessBase"]
[SourceQuality "1"]
[TimeControl "40/5400+30:1800+30"]

1. e4 c5 2. Nf3 d6 3. d4 cxd4 4. Nxd4 Nf6 5. Nc3 a6 6. Bg5 e6 7. f4 Be7 8. Qd2 h6 9. Bxf6 Bxf6 10. O-O-O O-O 11. g4 b5 12. a3 Bb7 13. Bg2 Nd7 14. Nb3 Bxc3 15. Qxc3 Nf6 16. Nc5 Qb6 17. Nxb7 Qxb7 18. Rxd6 Rac8 19. Qd2 Nxg4 20. h3 Nf6 21. e5 Ne4 22. Qd3 f5 23. exf6 Rxc2+ 24. Qxc2 Rc8 25. Rd8+ Rxd8 26. Bxe4 Qa7 27. fxg7 Kxg7 28. Qc3+ Kf7 29. f5 Rc8 30. fxe6+ Ke7 31. Bc6 Qc7 32. Qb4+ Kxe6 33. Re1+ Kf7 34. Rf1+ Kg7 35. Qg4+ Kh8 36. Rf6 Qxc6+ 37. Rxc6 Rxc6+ 38. Kd2 Rf6 39. h4 Kh7 40. h5 Rd6+ 41. Kc3 Rc6+ 42. Kd3 Rd6+ 43. Ke4 a5 44. Ke5 Rd2 45. Qg6+ Kh8 {[%emt 1:30:29]} 46. Qxh6+ {[%emt 1:36:29]} 1-0

[Event "Norway Eliteserien 2023-24"]
[Site "Oslo"]
[Date "2024.03.09"]
[Round "8.26"]
[White "Torfoss, Sivert Schanche"]
[Black "Hammari, Vinjar"]
[Result "1-0"]
[ECO "A46"]
[WhiteElo "1962"]
[BlackElo "1875"]
[Annotator "RC"]
[PlyCount "57"]
[EventDate "2023.10.27"]
[EventType "team-tourn"]
[EventCountry "NOR"]
[SourceTitle "playchess.com"]
[Source "ChessBase"]
[SourceQuality "1"]
[TimeControl "40/5400+30:1800+30"]

1. Nf3 d5 2. g3 Nf6 3. Bg2 e6 4. d4 Be7 5. O-O b5 6. a4 b4 7. c4 bxc3 8. bxc3 Ba6 9. Re1 O-O 10. Ne5 c5 11. Bg5 Qc7 12. Nd2 Rd8 13. e4 Bb7 14. Rb1 Nc6 15. exd5 exd5 16. Rxb7 Qxb7 17. Nxc6 Qxc6 18. Rxe7 Qd6 19. Re5 cxd4 20. cxd4 Qb4 21. Bxf6 gxf6 22. Rxd5 Rxd5 23. Bxd5 Rd8 24. Ne4 Qb6 25. Qh5 Qxd4 26. Qxf7+ Kh8 27. Nxf6 Qd3 28. Be4 Qd1+ {[%emt 1:27:25]} 29. Kg2 {[%emt 1:30:54]} 1-0

[Event "Norway Eliteserien 2023-24"]
[Site "Oslo"]
[Date "2024.03.09"]
[Round "8.31"]
[White "Asker-A. Brkic"]
[Black "Houska, Jovanka"]
[Result "1-0"]
[ECO "B12"]
[WhiteElo "2633"]
[BlackElo "2342"]
[Annotator "ChessBase"]
[PlyCount "87"]
[EventDate "2023.10.27"]
[EventType "team-tourn"]
[EventCountry "NOR"]
[SourceTitle "playchess.com"]
[Source "ChessBase"]
[SourceQuality "1"]
[TimeControl "40/5400+30:1800+30"]

1. e4 c6 2. d4 d5 3. e5 Bf5 4. Nf3 e6 5. Be2 Ne7 6. c3 Nd7 7. O-O c5 8. dxc5 Nxc5 9. Be3 Nc6 10. Nd4 Bg6 11. c4 dxc4 12. Nxc6 bxc6 13. Nd2 Be7 14. Nxc4 O-O 15. Qc1 Qc7 16. Bg5 Rfd8 17. Bxe7 Qxe7 18. Qe3 Rd5 19. Rfc1 Nd3 20. Bxd3 Rxd3 21. Qe2 Qc5 22. Nd6 Qd5 23. b3 a5 24. Nc4 Qd4 25. Qe1 Qg4 26. Ne3 Qg5 27. Nf1 Rd5 28. Rxc6 Rxe5 29. Qc1 Qd8 30. Qc3 Rd5 31. Rc1 h5 32. Rc5 Rd3 33. Qe5 a4 34. b4 Qd4 35. Qxd4 Rxd4 36. a3 Rd3 37. R5c3 Rad8 38. f3 Rxc3 39. Rxc3 Rd1 40. Kf2 Rb1 41. Nd2 Rb2 42. Ke2 Bc2 43. b5 Bb3 {[%emt 1:59:48]} 44. Rxb3 {[%emt 2:16:44]} 1-0

[Event "Norway Eliteserien 2023-24"]
[Site "Oslo"]
[Date "2024.03.09"]
[Round "8.32"]
[White "Bern, Ivar"]
[Black "Asker-A. Jankovic"]
[Result "0-1"]
[ECO "A21"]
[WhiteElo "2300"]
[BlackElo "2550"]
[Annotator "ChessBase"]
[PlyCount "92"]
[EventDate "2023.10.27"]
[EventType "team-tourn"]
[EventCountry "NOR"]
[SourceTitle "playchess.com"]
[Source "ChessBase"]
[SourceQuality "1"]
[TimeControl "40/5400+30:1800+30"]

1. c4 d6 2. g3 e5 3. Bg2 f5 4. d4 Be7 5. Nc3 c6 6. e4 Nf6 7. dxe5 dxe5 8. Qxd8+ Bxd8 9. Nf3 Nxe4 10. Nxe4 fxe4 11. Ng5 Bxg5 12. Bxg5 Bf5 13. O-O Nd7 14. Rfe1 Nc5 15. b4 Nd3 16. Re2 O-O 17. Rf1 h6 18. Bd2 Nb2 19. Bxh6 Nxc4 20. Bg5 a5 21. Rc1 e3 22. Bxe3 Bd3 23. Ree1 axb4 24. Bc5 Rf7 25. Bxb4 Rxa2 26. f4 exf4 27. Rxc4 Bxc4 28. Re8+ Kh7 29. Be4+ Kh6 30. h4 Ra1+ 31. Kh2 Ra2+ 32. Kg1 g6 33. Rh8+ Kg7 34. Bc3+ Rf6 35. Rb8 Ba6 36. Rd8 Kf7 37. Bxf6 Kxf6 38. gxf4 Ra4 39. Bc2 Rxf4 40. Rf8+ Ke5 41. Rxf4 Kxf4 42. Bxg6 Bc4 43. Kf2 b5 44. Ke1 c5 45. Kd2 b4 46. Kd1 {[%emt 2:06:29]} Be6 {[%emt 2:04:37]} 0-1

[Event "Norway Eliteserien 2023-24"]
[Site "Oslo"]
[Date "2024.03.09"]
[Round "8.33"]
[White "Tisdall, Jonathan D"]
[Black "Stokke, Kjetil"]
[Result "1-0"]
[ECO "A65"]
[WhiteElo "2375"]
[BlackElo "2302"]
[Annotator "RC"]
[PlyCount "73"]
[EventDate "2023.10.27"]
[EventType "team-tourn"]
[EventCountry "NOR"]
[SourceTitle "playchess.com"]
[Source "ChessBase"]
[SourceQuality "1"]
[TimeControl "40/5400+30:1800+30"]

1. d4 Nf6 2. c4 g6 3. Nc3 Bg7 4. e4 d6 5. f3 O-O 6. Nge2 c5 7. d5 e6 8. Bg5 h6 9. Be3 exd5 10. cxd5 a6 11. a4 Nbd7 12. Qd2 Ne5 13. Ng3 h5 14. Be2 h4 15. Nf1 Nh7 16. Bh6 f5 17. Bxg7 Kxg7 18. exf5 Bxf5 19. f4 h3 20. gxh3 Nf7 21. Ng3 Nh6 22. Rg1 Qa5 23. O-O-O Qb4 24. Bd3 Bxd3 25. Qxd3 Qxf4+ 26. Kb1 Qg5 27. Nge4 Qe5 28. Nxc5 dxc5 29. Rxg6+ Kh8 30. Rxh6 Qf5 31. Qxf5 Rxf5 32. Rb6 Rf7 33. Ne4 Rd8 34. Nxc5 Rf5 35. Nxb7 Rdxd5 36. Rxd5 Rxd5 {[%emt 1:48:30]} 37. Rxa6 {[%emt 1:36:33]} 1-0

[Event "Norway Eliteserien 2023-24"]
[Site "Oslo"]
[Date "2024.03.09"]
[Round "8.34"]
[White "Gullaksen, Eirik"]
[Black "Sahl, Bjarke"]
[Result "1/2-1/2"]
[ECO "C85"]
[WhiteElo "2321"]
[BlackElo "2216"]
[Annotator "RC"]
[PlyCount "52"]
[EventDate "2023.10.27"]
[EventType "team-tourn"]
[EventCountry "NOR"]
[SourceTitle "playchess.com"]
[Source "ChessBase"]
[SourceQuality "1"]
[TimeControl "40/5400+30:1800+30"]

1. e4 e5 2. Nf3 Nc6 3. Bb5 a6 4. Ba4 Nf6 5. O-O Be7 6. Bxc6 dxc6 7. Re1 Nd7 8. b3 Nf8 9. Bb2 f6 10. d4 exd4 11. Nxd4 Ne6 12. Nf5 Qxd1 13. Rxd1 Kf7 14. Nd2 Bf8 15. Nc4 g6 16. Nfe3 Be7 17. e5 f5 18. Nd6+ cxd6 19. exd6 Bf6 20. Bxf6 Kxf6 21. d7 Rd8 22. dxc8=Q Raxc8 23. Kf1 b5 24. c3 h5 25. f3 Rxd1+ 26. Rxd1 {[%emt 1:07:07]} Rd8 {[%emt 1:18:05]} 1/2-1/2

[Event "Norway Eliteserien 2023-24"]
[Site "Oslo"]
[Date "2024.03.09"]
[Round "8.35"]
[White "Aulin-Jansson, Joran"]
[Black "Demac, Elias"]
[Result "0-1"]
[ECO "A87"]
[WhiteElo "2102"]
[BlackElo "2212"]
[Annotator "ChessBase"]
[PlyCount "92"]
[EventDate "2023.10.27"]
[EventType "team-tourn"]
[EventCountry "NOR"]
[SourceTitle "playchess.com"]
[Source "ChessBase"]
[SourceQuality "1"]
[TimeControl "40/5400+30:1800+30"]

1. Nf3 f5 2. g3 Nf6 3. Bg2 d6 4. O-O g6 5. d4 Bg7 6. c4 O-O 7. Nc3 Qe8 8. Re1 Qf7 9. b3 Ne4 10. Bb2 Nc6 11. Rc1 Nxc3 12. Bxc3 e5 13. e3 h6 14. dxe5 dxe5 15. Qd5 Rd8 16. Qxf7+ Kxf7 17. Red1 Be6 18. Ne1 e4 19. Bxg7 Kxg7 20. Nc2 Ne5 21. Nd4 Bf7 22. c5 Bd5 23. Bf1 c6 24. Be2 a5 25. a3 Kf6 26. Kf1 g5 27. Rc3 h5 28. Nc2 h4 29. gxh4 gxh4 30. h3 Rg8 31. Bc4 Bxc4+ 32. bxc4 Rad8 33. Rd6+ Rxd6 34. cxd6 c5 35. Rb3 Rd8 36. Rb5 Rxd6 37. Rxc5 Rd2 38. Nd4 Rxf2+ 39. Kxf2 Nd3+ 40. Ke2 Nxc5 41. Nb5 Ke5 42. Nc3 Nd3 43. Na4 f4 44. Nb6 f3+ 45. Kf1 Nb2 46. c5 {[%emt 2:16:09]} Nd1 {[%emt 2:04:58]} 0-1

[Event "Norway Eliteserien 2023-24"]
[Site "Oslo"]
[Date "2024.03.09"]
[Round "8.36"]
[White "Abdullah, Mansoor"]
[Black "Strand, Vetle Bjorge"]
[Result "0-1"]
[ECO "D46"]
[WhiteElo "2270"]
[BlackElo "2089"]
[Annotator "RC"]
[PlyCount "54"]
[EventDate "2023.10.27"]
[EventType "team-tourn"]
[EventCountry "NOR"]
[SourceTitle "playchess.com"]
[Source "ChessBase"]
[SourceQuality "1"]
[TimeControl "40/5400+30:1800+30"]

1. d4 d5 2. c4 c6 3. Nc3 Nf6 4. e3 e6 5. Nf3 Nbd7 6. Qc2 Bd6 7. Bd3 dxc4 8. Bxc4 b5 9. Bd3 Bb7 10. O-O O-O 11. e4 e5 12. h3 exd4 13. Nxd4 Nc5 14. Rd1 Nxd3 15. Qxd3 Be5 16. Be3 b4 17. Na4 Qa5 18. Qc2 Nxe4 19. Qxe4 Bxd4 20. Bxd4 Qxa4 21. Bxg7 Rfe8 22. Qg4 Bc8 23. Qg3 Qc2 24. Rd6 Be6 25. Bh6+ Qg6 26. Qh4 f6 27. Rd3 {[%emt 1:19:22]} Qxd3 {[%emt 1:41:04]} 0-1

[Event "Norway Eliteserien 2023-24"]
[Site "Oslo"]
[Date "2024.03.09"]
[Round "8.41"]
[White "Kvaloy, Aksel Bu"]
[Black "Petkov, Momchil"]
[Result "1/2-1/2"]
[ECO "C95"]
[WhiteElo "2443"]
[BlackElo "2504"]
[Annotator "RC"]
[PlyCount "85"]
[EventDate "2023.10.27"]
[EventType "team-tourn"]
[EventCountry "NOR"]
[SourceTitle "playchess.com"]
[Source "ChessBase"]
[SourceQuality "1"]
[TimeControl "40/5400+30:1800+30"]

1. e4 e5 2. Nf3 Nc6 3. Bb5 a6 4. Ba4 Nf6 5. O-O Be7 6. Re1 b5 7. Bb3 d6 8. c3 O-O 9. h3 Nb8 10. d4 Nbd7 11. c4 c6 12. Nc3 b4 13. Ne2 Nxe4 14. Qc2 Ndf6 15. c5 Bf5 16. Nh4 Bd7 17. dxe5 dxe5 18. Be3 Nd5 19. Qxe4 Bxh4 20. Bxd5 cxd5 21. Qxe5 Bf6 22. Qd6 Bb5 23. Qxd8 Rfxd8 24. Nd4 Bxd4 25. Bxd4 Re8 26. f3 f6 27. Kf2 Kf7 28. Rac1 Rxe1 29. Rxe1 Re8 30. Be3 d4 31. Bxd4 Rxe1 32. Kxe1 Ke6 33. g4 Kd5 34. Be3 Bc4 35. a3 bxa3 36. bxa3 Bb5 37. Kd2 Kc4 38. f4 Bc6 39. h4 Bf3 40. g5 f5 41. Bf2 g6 42. Bg1 Bc6 {[%emt 1:38:53]} 43. Bf2 {[%emt 1:47:39]} 1/2-1/2

[Event "Norway Eliteserien 2023-24"]
[Site "Oslo"]
[Date "2024.03.09"]
[Round "8.42"]
[White "Delchev, Aleksander"]
[Black "Gjestemoen-VonHirsch, Andre"]
[Result "1-0"]
[ECO "B30"]
[WhiteElo "2492"]
[BlackElo "2309"]
[Annotator "RC"]
[PlyCount "41"]
[EventDate "2023.10.27"]
[EventType "team-tourn"]
[EventCountry "NOR"]
[SourceTitle "playchess.com"]
[Source "ChessBase"]
[SourceQuality "1"]
[TimeControl "40/5400+30:1800+30"]

1. e4 c5 2. Nf3 e6 3. Nc3 Nc6 4. Bb5 Nge7 5. O-O a6 6. Bxc6 Nxc6 7. d4 cxd4 8. Nxd4 Qc7 9. Re1 b5 10. Nd5 exd5 11. Nxc6 Bd6 12. exd5+ Kf8 13. Qe2 Bb7 14. Ne7 Bxh2+ 15. Kh1 Bd6 16. Nf5 h5 17. Bg5 Kg8 18. Be7 Bxe7 19. Qxe7 Rf8 20. Re5 Qd8 {[%emt 1:38:35]} 21. a4 {[%emt 1:32:11]} 1-0

[Event "Norway Eliteserien 2023-24"]
[Site "Oslo"]
[Date "2024.03.09"]
[Round "8.43"]
[White "Shehzad, Shazil"]
[Black "Elmi, Saad Abobaker"]
[Result "0-1"]
[ECO "B52"]
[WhiteElo "2265"]
[BlackElo "2323"]
[Annotator "RC"]
[PlyCount "68"]
[EventDate "2023.10.27"]
[EventType "team-tourn"]
[EventCountry "NOR"]
[SourceTitle "playchess.com"]
[Source "ChessBase"]
[SourceQuality "1"]
[TimeControl "40/5400+30:1800+30"]

1. e4 c5 2. Nf3 d6 3. Bb5+ Bd7 4. Bxd7+ Nxd7 5. O-O e6 6. Qe2 Be7 7. c4 Bf6 8. Rd1 Qb6 9. Nc3 Ne7 10. d3 O-O 11. Bf4 Rad8 12. Rab1 a6 13. a3 h6 14. Qc2 Qc6 15. a4 Qc7 16. b4 cxb4 17. Rxb4 Nc6 18. Rbb1 Nde5 19. Nxe5 dxe5 20. Be3 Rd7 21. Ne2 Bg5 22. Qc3 Bxe3 23. fxe3 Rfd8 24. Kh1 Qa5 25. Qa3 Qc7 26. Rb2 Na5 27. Rc2 b5 28. axb5 axb5 29. c5 Nc4 30. Rxc4 bxc4 31. d4 Qc6 32. Rc1 Qxe4 33. Rxc4 exd4 34. c6 {[%emt 1:40:49]} Rc7 {[%emt 1:39:23]} 0-1

[Event "Norway Eliteserien 2023-24"]
[Site "Oslo"]
[Date "2024.03.09"]
[Round "8.44"]
[White "Adnoy, Hallvard V."]
[Black "Tallaksen, Levi Andre"]
[Result "0-1"]
[ECO "B14"]
[WhiteElo "2303"]
[BlackElo "2312"]
[Annotator "RC"]
[PlyCount "78"]
[EventDate "2023.10.27"]
[EventType "team-tourn"]
[EventCountry "NOR"]
[SourceTitle "playchess.com"]
[Source "ChessBase"]
[SourceQuality "1"]
[TimeControl "40/5400+30:1800+30"]

1. Nf3 Nf6 2. e3 c5 3. d4 e6 4. c4 cxd4 5. exd4 d5 6. Nc3 Nc6 7. c5 Be7 8. Bb5 O-O 9. O-O Qc7 10. Re1 Bd7 11. Bg5 b6 12. Na4 bxc5 13. Bxf6 Bxf6 14. Nxc5 Be8 15. Rc1 Qb6 16. Bxc6 Bxc6 17. Qd2 Rfc8 18. Rc3 Be8 19. Ne5 Qa5 20. a3 Rc7 21. Ng4 Be7 22. Qf4 Rac8 23. b4 Qb6 24. Rg3 Kh8 25. Rh3 a5 26. Ree3 f5 27. Ne5 axb4 28. Rb3 Ra7 29. g4 Bxc5 30. gxf5 Be7 31. Ng6+ Kg8 32. Rxh7 Bxg6 33. fxg6 Bf6 34. Rbh3 Kf8 35. Rh8+ Ke7 36. Rxc8 bxa3 37. Rhh8 a2 38. Rcf8 Qb1+ 39. Kg2 {[%emt 1:49:00]} Qxg6+ {[%emt 1:42:01]} 0-1

[Event "Norway Eliteserien 2023-24"]
[Site "Oslo"]
[Date "2024.03.09"]
[Round "8.45"]
[White "Fossan, Aleksander"]
[Black "Mihajlov, Sebastian"]
[Result "1/2-1/2"]
[ECO "B14"]
[WhiteElo "2133"]
[BlackElo "2373"]
[Annotator "TA"]
[PlyCount "99"]
[EventDate "2023.10.27"]
[EventType "team-tourn"]
[EventCountry "NOR"]
[SourceTitle "playchess.com"]
[Source "ChessBase"]
[SourceQuality "1"]
[TimeControl "40/5400+30:1800+30"]

{[%evp 15,99,0,0,0,10,4,23,8,12,11,11,7,37,43,41,4,9,6,9,0,0,-4,19,0,0,-22,-8,-33,-28,-33,-21,-66,-54,-102,-105,-92,-94,-93,-52,-170,-138,-139,-135,-139,-127,-290,-293,-372,-391,-360,-382,-377,-242,-212,-81,-115,-104,-107,-61,-49,-65,-51,-52,-56,-50,-113,-120,-118,-114,-339,-330,-322,-319,-421,0,0,0,0,0,0,0,0,0,0,0,0]} 1. e4 c6 2. d4 d5 3. exd5 cxd5 4. c4 Nf6 5. Nc3 g6 6. cxd5 Bg7 7. Qb3 O-O 8. Nf3 Nbd7 9. a4 {[%cal Ba2a4,Ba4a5][%mdl 32]} Nb6 {[%cal Rb6d5]} 10. a5 Nbxd5 11. Bc4 {White has an edge.} Nxc3 12. bxc3 Ne4 13. O-O Qc7 14. Re1 Nd6 15. Bd3 Bg4 16. Ne5 Be6 $132 {[%mdl 2048] Black is fighting back} 17. Qb4 Rfc8 18. Bd2 Rab8 19. Rac1 b6 20. a6 b5 21. Bf4 Rb6 22. Qa5 Qd8 23. h4 Bd5 24. h5 e6 $17 25. hxg6 hxg6 26. Qb4 Nc4 27. Ra1 (27. Bxc4 $15 Bxe5 28. Rxe5 Rxc4 29. Qb2) 27... Nxe5 28. Bxe5 Qg5 29. Bf1 Bf8 $1 {Wards off Bd6} 30. Qa5 (30. Qb2 $17) 30... b4 $19 31. Re3 {[#]} b3 32. Rb1 b2 33. Bg3 {[%cal Oc3c4]} Qf5 34. Bd3 {[#]} Be4 35. Qxf5 Bxf5 36. Bxf5 gxf5 (36... exf5 $17 37. Kf1 g5 (37... Rxa6 38. Rxb2 Bh6 39. Rf3 $14)) 37. Be5 $15 {Dodges Ba3} Be7 {[%cal Of7f6]} 38. Rg3+ Kf8 {[%cal Oc8c4]} 39. Rh3 {[%cal Rh3h8]} Ke8 {[%cal Oe8d7]} (39... Rxa6 40. Rh8#) 40. Rh8+ (40. d5 $15) 40... Kd7 $17 41. Rxc8 Kxc8 {[%mdl 4096] Endgame. KRB-KRB} 42. c4 $2 (42. Kf1 $17) 42... f6 $19 ({Inferior is} 42... Rxa6 43. Rxb2 Bd6 44. Bxd6 Rxd6 45. Rd2 $11) 43. Bf4 Ba3 $1 {[%cal Ob6c6] aiming for ...Rc6!} ({Worse is} 43... Rxa6 44. Rxb2 Bd6 45. Bxd6 Rxd6 46. Ra2 $11) 44. Kf1 Rb4 $2 ({Less strong is} 44... Rxa6 45. Ke2 $17) (44... Rc6 $19 45. c5 Rxa6) 45. Bd6 $11 {The position is equal.} Ra4 46. Bxa3 Rxa3 47. Rxb2 Rxa6 48. Ke2 Ra3 49. Rd2 Rc3 {[%emt 1:46:51]} 50. Ra2 {[%emt 2:04:14] Weighted Error Value: White=0.32/Black=0.27 (precise) .  Loses game:     	White=2     	---        Missed win:     	---       	Black=1      Mistake:       	White=3     	Black=2      Inaccurate:     	White=4     	Black=3      OK:         	White=16    	Black=16     Best:        	White=4     	Black=6      Strong:       	---       	Black=2} 1/2-1/2

[Event "Norway Eliteserien 2023-24"]
[Site "Oslo"]
[Date "2024.03.09"]
[Round "8.46"]
[White "Olsen, Michael R. W."]
[Black "Fiskaaen, Martin Holten"]
[Result "1-0"]
[ECO "E11"]
[WhiteElo "2041"]
[BlackElo "2154"]
[Annotator "RC"]
[PlyCount "79"]
[EventDate "2023.10.27"]
[EventType "team-tourn"]
[EventCountry "NOR"]
[SourceTitle "playchess.com"]
[Source "ChessBase"]
[SourceQuality "1"]
[TimeControl "40/5400+30:1800+30"]

1. d4 Nf6 2. c4 e6 3. Nf3 d5 4. g3 Bb4+ 5. Bd2 Be7 6. Bg2 O-O 7. O-O c6 8. a4 a5 9. Qc2 Nbd7 10. Rc1 Ne4 11. Ne1 Nxd2 12. Nxd2 Bb4 13. e3 b6 14. Nd3 Ba6 15. Nxb4 axb4 16. Qb3 Qe7 17. Rc2 Rfc8 18. Bf1 dxc4 19. Bxc4 Bb7 20. Rac1 g6 21. Bd3 c5 22. Be4 Rcb8 23. Bxb7 Rxb7 24. Ne4 Rba7 25. dxc5 Nxc5 26. Nxc5 bxc5 27. Rxc5 Rxa4 28. R1c4 Qb7 29. e4 Ra1+ 30. Kg2 R1a4 31. Rc7 Qb5 32. Qf3 Rf8 33. Qf6 Raa8 34. h4 Rab8 35. R7c5 Qd7 36. h5 Qd8 37. Qe5 gxh5 38. Rd4 Qe8 39. Qg5+ Kh8 {[%emt 1:49:12]} 40. Qf6+ {[%emt 1:28:21]} 1-0

[Event "Norway Eliteserien 2023-24"]
[Site "Oslo"]
[Date "2024.03.09"]
[Round "8.51"]
[White "Predojevic, Borki"]
[Black "Sadhwani, Raunak"]
[Result "1/2-1/2"]
[ECO "C47"]
[WhiteElo "2572"]
[BlackElo "2649"]
[Annotator "TA"]
[PlyCount "20"]
[EventDate "2023.10.27"]
[EventType "team-tourn"]
[EventCountry "NOR"]
[SourceTitle "playchess.com"]
[Source "ChessBase"]
[SourceQuality "1"]
[TimeControl "40/5400+30:1800+30"]

{[%evp 9,20,0,0,0,4,10,7,13,4,0,2,0,3]} 1. e4 e5 2. Nf3 Nc6 3. Nc3 Nf6 4. h3 Bb4 5. Nd5 Nxd5 {The position is equal.} 6. exd5 e4 7. dxc6 exf3 8. Qxf3 dxc6 9. Bc4 {[%csl Gc4][%cal Rf3f7] [#]} Qe7+ 10. Qe2 {[%emt 0:19:01]} Qxe2+ {[%emt 0:11:11] A rather calm draw.   Weighted Error Value: White=0.02 (flawless) /Black=0.00 (flawless) .  OK:         	White=1     	Black=3      Best:        	---       	Black=1} 1/2-1/2

[Event "Norway Eliteserien 2023-24"]
[Site "Oslo"]
[Date "2024.03.09"]
[Round "8.52"]
[White "Tari, Aryan"]
[Black "Romanov, Evgeny"]
[Result "1/2-1/2"]
[ECO "A36"]
[WhiteElo "2635"]
[BlackElo "2593"]
[Annotator "RC"]
[PlyCount "49"]
[EventDate "2023.10.27"]
[EventType "team-tourn"]
[EventCountry "NOR"]
[SourceTitle "playchess.com"]
[Source "ChessBase"]
[SourceQuality "1"]
[TimeControl "40/5400+30:1800+30"]

1. c4 c5 2. g3 g6 3. Bg2 Bg7 4. Nc3 Nc6 5. e3 e6 6. Nge2 Nge7 7. O-O O-O 8. d4 cxd4 9. Nxd4 Nxd4 10. exd4 d5 11. cxd5 Nxd5 12. Nxd5 exd5 13. Be3 Be6 14. Qb3 Qb6 15. Rfc1 Bxd4 16. Bxd4 Qxd4 17. Rd1 Qc4 18. Bxd5 Qxb3 19. axb3 Rad8 20. Bxb7 Rxd1+ 21. Rxd1 Rb8 22. Bd5 Bxd5 23. Rxd5 Rxb3 24. Rd7 Rxb2 {[%emt 0:48:06]} 25. Rxa7 {[%emt 0:35:48]} 1/2-1/2

[Event "Norway Eliteserien 2023-24"]
[Site "Oslo"]
[Date "2024.03.09"]
[Round "8.53"]
[White "Kulaots, Kaido"]
[Black "Christiansen, Johan-Sebastian"]
[Result "0-1"]
[ECO "C18"]
[WhiteElo "2525"]
[BlackElo "2633"]
[Annotator "RC"]
[PlyCount "58"]
[EventDate "2023.10.27"]
[EventType "team-tourn"]
[EventCountry "NOR"]
[SourceTitle "playchess.com"]
[Source "ChessBase"]
[SourceQuality "1"]
[TimeControl "40/5400+30:1800+30"]

1. e4 e6 2. d4 d5 3. Nc3 Bb4 4. e5 c5 5. a3 Bxc3+ 6. bxc3 Qc7 7. Qg4 f6 8. exf6 Nxf6 9. Qg3 Qf7 10. Nf3 O-O 11. Ne5 Qc7 12. Ng4 Qa5 13. Nxf6+ Rxf6 14. Bd2 Nc6 15. dxc5 Qxc5 16. Bd3 e5 17. O-O Bf5 18. Rab1 b6 19. Rb5 Qd6 20. Bg5 Rf7 21. Rd1 Be6 22. Bc4 Qxa3 23. Bxd5 Bxd5 24. Rbxd5 Raf8 25. Qh3 Qa4 26. Qe6 Qxc2 27. Be3 Nd4 28. Qg4 Rxf2 29. Rd7 {[%emt 1:43:05]} Rxg2+ {[%emt 1:43:35]} 0-1

[Event "Norway Eliteserien 2023-24"]
[Site "Oslo"]
[Date "2024.03.09"]
[Round "8.54"]
[White "Urkedal, Frode Olav Olsen"]
[Black "Hobber, Anders"]
[Result "1-0"]
[ECO "B12"]
[WhiteElo "2525"]
[BlackElo "2359"]
[Annotator "RC"]
[PlyCount "56"]
[EventDate "2023.10.27"]
[EventType "team-tourn"]
[EventCountry "NOR"]
[SourceTitle "playchess.com"]
[Source "ChessBase"]
[SourceQuality "1"]
[TimeControl "40/5400+30:1800+30"]

1. e4 c6 2. d4 d5 3. e5 Bf5 4. h4 h5 5. c4 e6 6. Nc3 Ne7 7. Nge2 dxc4 8. Ng3 Bg6 9. Bxc4 Nd7 10. Bg5 Qb6 11. O-O Nf5 12. Nxf5 Bxf5 13. Rc1 Be7 14. Bxe7 Kxe7 15. Qd2 Kf8 16. Rfe1 Qd8 17. Ne4 Bxe4 18. Rxe4 Nb6 19. Bb3 g6 20. Rc3 Kg7 21. Rf3 Nd5 22. Bxd5 Qxd5 23. Qf4 Rhf8 24. g4 hxg4 25. Qf6+ Kh7 26. Rxg4 Qd8 27. Qf4 Qe7 28. h5 {[%emt 1:08:16]} gxh5 {[%emt 1:32:41]} 1-0

[Event "Norway Eliteserien 2023-24"]
[Site "Oslo"]
[Date "2024.03.09"]
[Round "8.55"]
[White "Vålerenga-?. Fossum"]
[Black "Kaasen, Tor Fredrik"]
[Result "1/2-1/2"]
[ECO "A12"]
[WhiteElo "2313"]
[BlackElo "2437"]
[Annotator "ChessBase"]
[PlyCount "88"]
[EventDate "2023.10.27"]
[EventType "team-tourn"]
[EventCountry "NOR"]
[SourceTitle "playchess.com"]
[Source "ChessBase"]
[SourceQuality "1"]
[TimeControl "40/5400+30:1800+30"]

1. Nf3 d5 2. b3 Bf5 3. Bb2 e6 4. g3 h6 5. Bg2 Nf6 6. c4 Be7 7. O-O O-O 8. d3 c6 9. Nbd2 Nbd7 10. Qc2 Bh7 11. a3 a5 12. Bc3 b5 13. cxb5 cxb5 14. b4 Qc7 15. Qb2 axb4 16. Bxb4 Bxb4 17. axb4 e5 18. Rfc1 Rxa1 19. Qxa1 Qd6 20. Qa5 e4 21. Ne1 Qe5 22. Qa1 Qh5 23. Qd4 Qxe2 24. dxe4 dxe4 25. Bh3 Nb8 26. Bf1 Qh5 27. Qc5 Qd5 28. Qxd5 Nxd5 29. Bxb5 Nxb4 30. Rc4 e3 31. fxe3 Nd3 32. Nef3 Rd8 33. Rd4 Rxd4 34. Nxd4 Nc5 35. N4b3 Nbd7 36. Nxc5 Nxc5 37. Kf2 Bd3 38. Bc6 Bg6 39. Bd5 Nd3+ 40. Kf3 Kf8 41. Ke2 Ne5 42. h3 h5 43. Nf3 Nxf3 44. Kxf3 {[%emt 1:55:07]} Ke7 {[%emt 1:45:36]} 1/2-1/2

[Event "Norway Eliteserien 2023-24"]
[Site "Oslo"]
[Date "2024.03.09"]
[Round "8.56"]
[White "Haldorsen, Benjamin"]
[Black "Stenersen, Gudmund"]
[Result "1-0"]
[ECO "C50"]
[WhiteElo "2427"]
[BlackElo "2144"]
[Annotator "RC"]
[PlyCount "101"]
[EventDate "2023.10.27"]
[EventType "team-tourn"]
[EventCountry "NOR"]
[SourceTitle "playchess.com"]
[Source "ChessBase"]
[SourceQuality "1"]
[TimeControl "40/5400+30:1800+30"]

1. e4 e5 2. Nf3 Nc6 3. Bc4 Bc5 4. O-O d6 5. c3 Bb6 6. Re1 Qf6 7. d3 h6 8. a4 Nge7 9. b4 a6 10. Be3 Bxe3 11. fxe3 O-O 12. Nbd2 Be6 13. Bxe6 Qxe6 14. d4 Nb8 15. Qb3 Qxb3 16. Nxb3 exd4 17. exd4 Nd7 18. Na5 b6 19. Nb3 f5 20. e5 Nd5 21. exd6 cxd6 22. c4 Nxb4 23. Re6 d5 24. cxd5 Nxd5 25. Rd6 N7f6 26. a5 Rfb8 27. Ne5 bxa5 28. Nxa5 Ne3 29. Nac4 Ne4 30. Rd7 Nxc4 31. Nxc4 a5 32. Rd5 a4 33. Rxf5 a3 34. Rxa3 Rxa3 35. Nxa3 Rb3 36. Rf3 Rxf3 37. gxf3 Nc3 38. Kf2 Kf7 39. Ke3 Ke6 40. Nc4 g5 41. Kd3 Nd5 42. Ne3 Nf6 43. Ng4 Ng8 44. Ke4 h5 45. d5+ Kd6 46. Ne3 g4 47. fxg4 Nf6+ 48. Kf5 Nxg4 49. Nxg4 hxg4 50. Kxg4 Kxd5 {[%emt 1:56:43]} 51. Kf5 {[%emt 1:50:55]} 1-0